[Event "Titled Tuesday Blitz April 25 Early 2023"]
[White "Odegov, Artem"]
[Black "Khamdamova, Afruza"]
[WhiteFideId "34183644"]
[BlackFideId "14210444"]
[WhiteElo "2300"]
[BlackElo "2210"]
[Result "1-0"]
[Round "08"]
[TimeControl "180+2"]
[Date "2023.04.25"]
[WhiteClock "0:00:58"]
[BlackClock "0:00:40"]

1. d4 {[%clk 0:02:56]}  Nf6 {[%clk 0:02:59]} 2. c4 {[%clk 0:02:55]}  e6 {[%clk 0:02:59]} 3. Nf3 {[%clk 0:02:54]}  b6 {[%clk 0:02:57]} 4. g3 {[%clk 0:02:54]}  Bb7 {[%clk 0:02:58]} 5. Bg2 {[%clk 0:02:54]}  Bb4+ {[%clk 0:02:57]} 6. Bd2 {[%clk 0:02:53]}  Bxd2+ {[%clk 0:02:57]} 7. Qxd2 {[%clk 0:02:54]}  O-O {[%clk 0:02:57]} 8. O-O {[%clk 0:02:54]}  d6 {[%clk 0:02:56]} 9. Nc3 {[%clk 0:02:55]}  Nbd7 {[%clk 0:02:55]} 10. Rfe1 {[%clk 0:02:55]}  Re8 {[%clk 0:02:52]} 11. e4 {[%clk 0:02:54]}  e5 {[%clk 0:02:51]} 12. Rad1 {[%clk 0:02:54]}  Qe7 {[%clk 0:02:50]} 13. Nd5 {[%clk 0:02:45]}  Bxd5 {[%clk 0:02:48]} 14. exd5 {[%clk 0:02:45]}  Qf8 {[%clk 0:02:38]} 15. dxe5 {[%clk 0:02:39]}  dxe5 {[%clk 0:02:34]} 16. Qc3 {[%clk 0:02:32]}  Qd6 {[%clk 0:02:31]} 17. b4 {[%clk 0:02:23]}  Rad8 {[%clk 0:02:30]} 18. Nd2 {[%clk 0:02:19]}  h6 {[%clk 0:02:13]} 19. Nb3 {[%clk 0:02:19]}  Nf8 {[%clk 0:01:55]} 20. c5 {[%clk 0:02:16]}  Qe7 {[%clk 0:01:53]} 21. a4 {[%clk 0:02:07]}  Ng6 {[%clk 0:01:50]} 22. a5 {[%clk 0:01:54]}  Qd7 {[%clk 0:01:42]} 23. d6 {[%clk 0:01:40]}  cxd6 {[%clk 0:01:28]} 24. Rxd6 {[%clk 0:01:40]}  Qg4 {[%clk 0:01:20]} 25. Rxd8 {[%clk 0:01:37]}  Rxd8 {[%clk 0:01:20]} 26. cxb6 {[%clk 0:01:38]}  axb6 {[%clk 0:01:20]} 27. axb6 {[%clk 0:01:32]}  e4 {[%clk 0:01:19]} 28. Qc7 {[%clk 0:01:24]}  Rd1 {[%clk 0:01:16]} 29. Qc3 {[%clk 0:01:18]}  Rd3 {[%clk 0:01:13]} 30. Qc4 {[%clk 0:01:15]}  Ne5 {[%clk 0:01:11]} 31. Qc5 {[%clk 0:00:57]}  Nf3+ {[%clk 0:00:55]} 32. Bxf3 {[%clk 0:00:57]}  exf3 {[%clk 0:00:52]} 33. b7 {[%clk 0:00:58]}  Qh3 {[%clk 0:00:40]} 34. Qc8+ {[%clk 0:00:58]} 1-0


[Site "https://www.chess.com"]

[Event "Titled Tuesday Blitz April 25 Early 2023"]
[White "Estrada Nieto, Julian"]
[Black "Osinenko, Anton"]
[WhiteFideId "5101018"]
[BlackFideId "4158970"]
[WhiteElo "2161"]
[BlackElo "2294"]
[Result "0-1"]
[Round "08"]
[TimeControl "180+2"]
[Date "2023.04.25"]
[WhiteClock "0:00:05"]
[BlackClock "0:00:03"]

1. e4 {[%clk 0:03:00]}  c5 {[%clk 0:02:58]} 2. Nf3 {[%clk 0:03:01]}  d6 {[%clk 0:02:58]} 3. Bb5+ {[%clk 0:03:01]}  Nd7 {[%clk 0:02:58]} 4. d4 {[%clk 0:03:00]}  a6 {[%clk 0:02:55]} 5. Bxd7+ {[%clk 0:02:59]}  Bxd7 {[%clk 0:02:56]} 6. Nc3 {[%clk 0:02:59]}  cxd4 {[%clk 0:02:56]} 7. Qxd4 {[%clk 0:02:59]}  Rc8 {[%clk 0:02:39]} 8. O-O {[%clk 0:02:51]}  Nf6 {[%clk 0:02:38]} 9. Bg5 {[%clk 0:02:50]}  e6 {[%clk 0:02:33]} 10. Rfd1 {[%clk 0:02:46]}  h6 {[%clk 0:02:30]} 11. Bh4 {[%clk 0:02:42]}  Be7 {[%clk 0:02:18]} 12. Bxf6 {[%clk 0:02:14]}  gxf6 {[%clk 0:02:19]} 13. a4 {[%clk 0:02:09]}  Qc7 {[%clk 0:02:14]} 14. Qd2 {[%clk 0:02:07]}  Qc5 {[%clk 0:02:10]} 15. Nd4 {[%clk 0:02:06]}  Qh5 {[%clk 0:01:58]} 16. Re1 {[%clk 0:01:56]}  Rg8 {[%clk 0:01:54]} 17. Re3 {[%clk 0:01:50]}  Bd8 {[%clk 0:01:42]} 18. Kh1 {[%clk 0:01:47]}  Qe5 {[%clk 0:01:33]} 19. Rf1 {[%clk 0:01:44]}  Bb6 {[%clk 0:01:31]} 20. Rd3 {[%clk 0:01:30]}  Qg5 {[%clk 0:01:21]} 21. f4 {[%clk 0:01:26]}  Qa5 {[%clk 0:01:21]} 22. Rh3 {[%clk 0:01:09]}  Ke7 {[%clk 0:00:53]} 23. f5 {[%clk 0:00:58]}  Rg5 {[%clk 0:00:28]} 24. Rxh6 {[%clk 0:00:48]}  Rcg8 {[%clk 0:00:27]} 25. g3 {[%clk 0:00:28]}  Qb4 {[%clk 0:00:16]} 26. fxe6 {[%clk 0:00:21]}  fxe6 {[%clk 0:00:11]} 27. Rh7+ {[%clk 0:00:16]}  R5g7 {[%clk 0:00:09]} 28. Rxg7+ {[%clk 0:00:15]}  Rxg7 {[%clk 0:00:10]} 29. Nf5+ {[%clk 0:00:14]}  Kf7 {[%clk 0:00:03]} 30. Nxg7 {[%clk 0:00:14]}  Kxg7 {[%clk 0:00:04]} 31. Qf4 {[%clk 0:00:13]}  Bd4 {[%clk 0:00:04]} 32. Ne2 {[%clk 0:00:11]}  Be5 {[%clk 0:00:04]} 33. Qg4+ {[%clk 0:00:11]}  Kf7 {[%clk 0:00:04]} 34. c3 {[%clk 0:00:08]}  Qxa4 {[%clk 0:00:04]} 35. Qh5+ {[%clk 0:00:06]}  Ke7 {[%clk 0:00:04]} 36. Qh7+ {[%clk 0:00:05]}  Kd8 {[%clk 0:00:05]} 37. Nf4 {[%clk 0:00:05]}  Qc4 {[%clk 0:00:03]} 0-1


[Site "https://www.chess.com"]

[Event "Titled Tuesday Blitz April 25 Early 2023"]
[White "Hoffmann, Asa"]
[Black "Weishaeutel, Moritz"]
[WhiteFideId "2001470"]
[BlackFideId "12967300"]
[WhiteElo "2117"]
[BlackElo "2301"]
[Result "0-1"]
[Round "08"]
[TimeControl "180+2"]
[Date "2023.04.25"]
[WhiteClock "0:00:13"]
[BlackClock "0:00:08"]

1. d4 {[%clk 0:02:54]}  e6 {[%clk 0:02:58]} 2. e4 {[%clk 0:02:54]}  d5 {[%clk 0:02:57]} 3. e5 {[%clk 0:02:54]}  c5 {[%clk 0:02:58]} 4. Nf3 {[%clk 0:02:54]}  cxd4 {[%clk 0:02:58]} 5. Qxd4 {[%clk 0:02:54]}  Nc6 {[%clk 0:02:58]} 6. Qf4 {[%clk 0:02:54]}  Nge7 {[%clk 0:02:51]} 7. Bd3 {[%clk 0:02:53]}  Ng6 {[%clk 0:02:49]} 8. Qg3 {[%clk 0:02:53]}  Qc7 {[%clk 0:02:47]} 9. O-O {[%clk 0:02:53]}  Bd7 {[%clk 0:02:18]} 10. Re1 {[%clk 0:02:51]}  Nb4 {[%clk 0:02:07]} 11. Nc3 {[%clk 0:02:50]}  Nxd3 {[%clk 0:01:55]} 12. cxd3 {[%clk 0:02:50]}  O-O-O {[%clk 0:01:56]} 13. h4 {[%clk 0:02:50]}  h5 {[%clk 0:01:54]} 14. Bg5 {[%clk 0:02:44]}  Re8 {[%clk 0:01:38]} 15. Rac1 {[%clk 0:02:43]}  Bc6 {[%clk 0:01:38]} 16. Nb5 {[%clk 0:02:35]}  Qb6 {[%clk 0:01:34]} 17. Nd6+ {[%clk 0:02:32]}  Bxd6 {[%clk 0:01:34]} 18. exd6 {[%clk 0:02:33]}  d4 {[%clk 0:01:13]} 19. Rc4 {[%clk 0:02:05]}  e5 {[%clk 0:00:52]} 20. Bd2 {[%clk 0:01:47]}  Qxb2 {[%clk 0:00:37]} 21. Rec1 {[%clk 0:01:36]}  Kb8 {[%clk 0:00:36]} 22. Nxd4 {[%clk 0:01:29]}  Qxd2 {[%clk 0:00:34]} 23. Nxc6+ {[%clk 0:01:27]}  bxc6 {[%clk 0:00:33]} 24. Rxc6 {[%clk 0:01:26]}  Rc8 {[%clk 0:00:26]} 25. Qf3 {[%clk 0:01:21]}  Qxc1+ {[%clk 0:00:06]} 26. Rxc1 {[%clk 0:01:20]}  Rxc1+ {[%clk 0:00:07]} 27. Kh2 {[%clk 0:01:20]}  Rd8 {[%clk 0:00:08]} 28. Qd5 {[%clk 0:01:10]}  Nf4 {[%clk 0:00:05]} 29. Qxe5 {[%clk 0:01:00]}  Ne6 {[%clk 0:00:05]} 30. Qb5+ {[%clk 0:00:57]}  Ka8 {[%clk 0:00:05]} 31. Qd5+ {[%clk 0:00:52]}  Kb8 {[%clk 0:00:05]} 32. g3 {[%clk 0:00:51]}  Rb1 {[%clk 0:00:04]} 33. f4 {[%clk 0:00:46]}  Rb6 {[%clk 0:00:04]} 34. f5 {[%clk 0:00:45]}  Rdxd6 {[%clk 0:00:04]} 35. Qe5 {[%clk 0:00:44]}  f6 {[%clk 0:00:03]} 36. Qe3 {[%clk 0:00:37]}  Nd4 {[%clk 0:00:03]} 37. Qe8+ {[%clk 0:00:36]}  Kc7 {[%clk 0:00:04]} 38. Qe7+ {[%clk 0:00:34]}  Rd7 {[%clk 0:00:04]} 39. Qc5+ {[%clk 0:00:33]}  Rc6 {[%clk 0:00:04]} 40. Qxa7+ {[%clk 0:00:33]}  Kd8 {[%clk 0:00:05]} 41. Qa8+ {[%clk 0:00:31]}  Rc8 {[%clk 0:00:05]} 42. Qa5+ {[%clk 0:00:29]}  Ke8 {[%clk 0:00:06]} 43. Qa4 {[%clk 0:00:28]}  Rc2+ {[%clk 0:00:05]} 44. Kh3 {[%clk 0:00:22]}  Rf2 {[%clk 0:00:06]} 45. g4 {[%clk 0:00:19]}  Rf3+ {[%clk 0:00:05]} 46. Kg2 {[%clk 0:00:19]}  hxg4 {[%clk 0:00:06]} 47. Qc4 {[%clk 0:00:17]}  Nxf5 {[%clk 0:00:05]} 48. Qxg4 {[%clk 0:00:15]}  Ne3+ {[%clk 0:00:05]} 49. Kxf3 {[%clk 0:00:14]}  Nxg4 {[%clk 0:00:06]} 50. Kxg4 {[%clk 0:00:14]}  Rxd3 {[%clk 0:00:07]} 51. Kf5 {[%clk 0:00:14]}  Ra3 {[%clk 0:00:07]} 52. h5 {[%clk 0:00:14]}  Rxa2 {[%clk 0:00:07]} 53. Kg6 {[%clk 0:00:14]}  Rh2 {[%clk 0:00:08]} 54. Kf5 {[%clk 0:00:13]}  Rxh5+ {[%clk 0:00:08]} 0-1


[Site "https://www.chess.com"]

[Event "Titled Tuesday Blitz April 25 Early 2023"]
[White "Hambleton, Aman"]
[Black "Derichs, Roger"]
[WhiteFideId "2606577"]
[BlackFideId "4630076"]
[WhiteElo "2511"]
[BlackElo "2360"]
[Result "1-0"]
[Round "08"]
[TimeControl "180+2"]
[Date "2023.04.25"]
[WhiteClock "0:00:02"]
[BlackClock "0:00:01"]

1. d4 {[%clk 0:02:59]}  d5 {[%clk 0:02:59]} 2. Bf4 {[%clk 0:02:54]}  e6 {[%clk 0:02:59]} 3. e3 {[%clk 0:02:49]}  Nf6 {[%clk 0:02:58]} 4. Nd2 {[%clk 0:02:45]}  c5 {[%clk 0:02:57]} 5. c3 {[%clk 0:02:45]}  Nc6 {[%clk 0:02:57]} 6. Ngf3 {[%clk 0:02:41]}  Be7 {[%clk 0:02:57]} 7. Bd3 {[%clk 0:02:40]}  Nh5 {[%clk 0:02:56]} 8. Be5 {[%clk 0:02:41]}  f6 {[%clk 0:02:56]} 9. Bg3 {[%clk 0:02:41]}  Qb6 {[%clk 0:02:55]} 10. Qc2 {[%clk 0:02:39]}  Nxg3 {[%clk 0:02:46]} 11. hxg3 {[%clk 0:02:35]}  f5 {[%clk 0:02:46]} 12. g4 {[%clk 0:02:35]}  g6 {[%clk 0:02:46]} 13. gxf5 {[%clk 0:02:32]}  exf5 {[%clk 0:02:47]} 14. dxc5 {[%clk 0:02:02]}  Qxc5 {[%clk 0:02:34]} 15. g4 {[%clk 0:01:51]}  O-O {[%clk 0:02:28]} 16. gxf5 {[%clk 0:01:34]}  Bxf5 {[%clk 0:02:28]} 17. Bxf5 {[%clk 0:00:38]}  Rxf5 {[%clk 0:02:27]} 18. O-O-O {[%clk 0:00:39]}  Raf8 {[%clk 0:02:12]} 19. Rh3 {[%clk 0:00:34]}  b5 {[%clk 0:01:57]} 20. Rdh1 {[%clk 0:00:27]}  R8f7 {[%clk 0:01:57]} 21. Kb1 {[%clk 0:00:16]}  b4 {[%clk 0:01:56]} 22. c4 {[%clk 0:00:09]}  d4 {[%clk 0:01:45]} 23. Nb3 {[%clk 0:00:04]}  Qd6 {[%clk 0:01:06]} 24. c5 {[%clk 0:00:05]}  Qf6 {[%clk 0:00:57]} 25. Nfxd4 {[%clk 0:00:04]}  Rxf2 {[%clk 0:00:52]} 26. Qc4 {[%clk 0:00:04]}  Ne5 {[%clk 0:00:47]} 27. Qd5 {[%clk 0:00:03]}  Rf1+ {[%clk 0:00:37]} 28. Nc1 {[%clk 0:00:02]}  Rxh1 {[%clk 0:00:23]} 29. Rxh1 {[%clk 0:00:03]}  Ng4 {[%clk 0:00:15]} 30. Re1 {[%clk 0:00:01]}  Qf2 {[%clk 0:00:11]} 31. Re2 {[%clk 0:00:01]}  Qf1 {[%clk 0:00:08]} 32. c6 {[%clk 0:00:01]}  Bf6 {[%clk 0:00:05]} 33. Qc4 {[%clk 0:00:01]}  Ne5 {[%clk 0:00:02]} 34. Qxb4 {[%clk 0:00:01]}  Kg7 {[%clk 0:00:01]} 35. Qb8 {[%clk 0:00:02]} 1-0


[Site "https://www.chess.com"]

[Event "Titled Tuesday Blitz April 25 Early 2023"]
[White "Belov, Alexei"]
[Black "Starozhilov, Leonid"]
[WhiteFideId "4128206"]
[BlackFideId "14106752"]
[WhiteElo "2512"]
[BlackElo "2352"]
[Result "0-1"]
[Round "08"]
[TimeControl "180+2"]
[Date "2023.04.25"]
[WhiteClock "0:00:05"]
[BlackClock "0:00:33"]

1. e4 {[%clk 0:03:00]}  Nc6 {[%clk 0:02:59]} 2. Nf3 {[%clk 0:03:00]}  d6 {[%clk 0:02:59]} 3. d4 {[%clk 0:03:00]}  Nf6 {[%clk 0:02:57]} 4. Bb5 {[%clk 0:02:55]}  a6 {[%clk 0:02:53]} 5. Bxc6+ {[%clk 0:02:54]}  bxc6 {[%clk 0:02:54]} 6. Nbd2 {[%clk 0:02:54]}  g6 {[%clk 0:02:54]} 7. O-O {[%clk 0:02:53]}  Bg7 {[%clk 0:02:54]} 8. Re1 {[%clk 0:02:50]}  O-O {[%clk 0:02:55]} 9. c4 {[%clk 0:02:49]}  Bg4 {[%clk 0:02:49]} 10. h3 {[%clk 0:02:48]}  Bxf3 {[%clk 0:02:50]} 11. Nxf3 {[%clk 0:02:48]}  Nd7 {[%clk 0:02:51]} 12. b3 {[%clk 0:02:40]}  a5 {[%clk 0:02:49]} 13. a4 {[%clk 0:02:34]}  c5 {[%clk 0:02:47]} 14. Bb2 {[%clk 0:02:34]}  cxd4 {[%clk 0:02:47]} 15. Bxd4 {[%clk 0:02:33]}  e5 {[%clk 0:02:45]} 16. Be3 {[%clk 0:02:20]}  Rb8 {[%clk 0:02:36]} 17. Rb1 {[%clk 0:02:19]}  f5 {[%clk 0:02:27]} 18. exf5 {[%clk 0:01:58]}  gxf5 {[%clk 0:02:25]} 19. Qd5+ {[%clk 0:01:44]}  Kh8 {[%clk 0:02:25]} 20. Qxa5 {[%clk 0:01:38]}  f4 {[%clk 0:02:02]} 21. Bc1 {[%clk 0:01:25]}  Nc5 {[%clk 0:02:00]} 22. Nxe5 {[%clk 0:00:49]}  Nb7 {[%clk 0:01:37]} 23. Qc3 {[%clk 0:00:30]}  dxe5 {[%clk 0:01:34]} 24. Bb2 {[%clk 0:00:29]}  Nc5 {[%clk 0:01:32]} 25. Ba1 {[%clk 0:00:25]}  Qd3 {[%clk 0:01:28]} 26. Qa5 {[%clk 0:00:24]}  Nxb3 {[%clk 0:01:19]} 27. Qxc7 {[%clk 0:00:23]}  Rbc8 {[%clk 0:01:17]} 28. Rxb3 {[%clk 0:00:13]}  Qxb3 {[%clk 0:01:05]} 29. Qe7 {[%clk 0:00:13]}  Rfe8 {[%clk 0:00:58]} 30. Qg5 {[%clk 0:00:12]}  Qb4 {[%clk 0:00:47]} 31. Rd1 {[%clk 0:00:11]}  Qe7 {[%clk 0:00:45]} 32. Qh5 {[%clk 0:00:10]}  e4 {[%clk 0:00:40]} 33. Bxg7+ {[%clk 0:00:06]}  Qxg7 {[%clk 0:00:41]} 34. Qb5 {[%clk 0:00:05]}  f3 {[%clk 0:00:40]} 35. g3 {[%clk 0:00:05]}  e3 {[%clk 0:00:40]} 36. Rd7 {[%clk 0:00:05]}  e2 {[%clk 0:00:33]} 0-1


[Site "https://www.chess.com"]

[Event "Titled Tuesday Blitz April 25 Early 2023"]
[White "Degenbaev, Aziz"]
[Black "Sielecki, Christof"]
[WhiteFideId "13802640"]
[BlackFideId "4620437"]
[WhiteElo "2152"]
[BlackElo "2443"]
[Result "0-1"]
[Round "08"]
[TimeControl "180+2"]
[Date "2023.04.25"]
[WhiteClock "0:00:18"]
[BlackClock "0:00:35"]

1. e4 {[%clk 0:02:57]}  c5 {[%clk 0:02:59]} 2. Nf3 {[%clk 0:02:57]}  a6 {[%clk 0:03:00]} 3. c3 {[%clk 0:02:56]}  d5 {[%clk 0:02:59]} 4. exd5 {[%clk 0:02:55]}  Qxd5 {[%clk 0:03:00]} 5. d4 {[%clk 0:02:56]}  e6 {[%clk 0:03:00]} 6. Be2 {[%clk 0:02:50]}  cxd4 {[%clk 0:02:59]} 7. cxd4 {[%clk 0:02:49]}  Nc6 {[%clk 0:02:59]} 8. Nc3 {[%clk 0:02:50]}  Qd6 {[%clk 0:02:59]} 9. O-O {[%clk 0:02:50]}  Nf6 {[%clk 0:02:59]} 10. Bg5 {[%clk 0:02:49]}  Be7 {[%clk 0:02:59]} 11. a3 {[%clk 0:02:39]}  O-O {[%clk 0:02:59]} 12. b4 {[%clk 0:02:39]}  Rd8 {[%clk 0:02:57]} 13. Be3 {[%clk 0:02:28]}  b5 {[%clk 0:02:53]} 14. Qb3 {[%clk 0:02:26]}  Bb7 {[%clk 0:02:51]} 15. h3 {[%clk 0:02:24]}  Rac8 {[%clk 0:02:47]} 16. Rfd1 {[%clk 0:02:24]}  Qb8 {[%clk 0:02:45]} 17. Rac1 {[%clk 0:02:11]}  h6 {[%clk 0:02:44]} 18. Qb2 {[%clk 0:01:33]}  Nd5 {[%clk 0:02:26]} 19. Nxd5 {[%clk 0:01:32]}  Rxd5 {[%clk 0:02:27]} 20. Nd2 {[%clk 0:01:29]}  Rdd8 {[%clk 0:02:20]} 21. Nb3 {[%clk 0:01:25]}  Qa8 {[%clk 0:02:15]} 22. Nc5 {[%clk 0:01:23]}  Bxc5 {[%clk 0:02:15]} 23. dxc5 {[%clk 0:01:23]}  Ne7 {[%clk 0:02:07]} 24. Bf1 {[%clk 0:01:23]}  Bd5 {[%clk 0:02:05]} 25. Bd4 {[%clk 0:01:19]}  f6 {[%clk 0:02:00]} 26. f3 {[%clk 0:01:13]}  Kf7 {[%clk 0:01:59]} 27. Bf2 {[%clk 0:01:11]}  Rd7 {[%clk 0:01:54]} 28. Qc2 {[%clk 0:01:07]}  Rcd8 {[%clk 0:01:52]} 29. a4 {[%clk 0:01:08]}  Bc6 {[%clk 0:01:52]} 30. axb5 {[%clk 0:01:03]}  axb5 {[%clk 0:01:53]} 31. Ra1 {[%clk 0:00:59]}  Qb7 {[%clk 0:01:51]} 32. Bg3 {[%clk 0:00:58]}  Rxd1 {[%clk 0:01:49]} 33. Rxd1 {[%clk 0:00:58]}  Rxd1 {[%clk 0:01:49]} 34. Qxd1 {[%clk 0:00:59]}  Qd7 {[%clk 0:01:47]} 35. Qa1 {[%clk 0:00:53]}  Nd5 {[%clk 0:01:45]} 36. Qa5 {[%clk 0:00:52]}  e5 {[%clk 0:01:44]} 37. Bf2 {[%clk 0:00:50]}  Nc3 {[%clk 0:01:38]} 38. Qb6 {[%clk 0:00:45]}  Nd1 {[%clk 0:01:34]} 39. Be2 {[%clk 0:00:33]}  Nc3 {[%clk 0:01:28]} 40. Bf1 {[%clk 0:00:27]}  e4 {[%clk 0:01:26]} 41. fxe4 {[%clk 0:00:25]}  Nxe4 {[%clk 0:01:26]} 42. Be3 {[%clk 0:00:25]}  Ng3 {[%clk 0:01:18]} 43. Qb8 {[%clk 0:00:07]}  Nxf1 {[%clk 0:01:10]} 44. Kxf1 {[%clk 0:00:07]}  Qd3+ {[%clk 0:01:07]} 45. Kf2 {[%clk 0:00:08]}  Qc2+ {[%clk 0:01:08]} 46. Ke1 {[%clk 0:00:08]}  Qxg2 {[%clk 0:01:05]} 47. Qc7+ {[%clk 0:00:08]}  Kg6 {[%clk 0:01:05]} 48. Qf4 {[%clk 0:00:08]}  Qxh3 {[%clk 0:00:51]} 49. Bd4 {[%clk 0:00:08]}  Qe6+ {[%clk 0:00:49]} 50. Kd2 {[%clk 0:00:08]}  Qd5 {[%clk 0:00:45]} 51. Qg3+ {[%clk 0:00:07]}  Qg5+ {[%clk 0:00:43]} 52. Qxg5+ {[%clk 0:00:07]}  Kxg5 {[%clk 0:00:44]} 53. Ke3 {[%clk 0:00:07]}  Kf5 {[%clk 0:00:44]} 54. Kf2 {[%clk 0:00:08]}  h5 {[%clk 0:00:44]} 55. Be3 {[%clk 0:00:08]}  g5 {[%clk 0:00:44]} 56. Kg3 {[%clk 0:00:09]}  h4+ {[%clk 0:00:44]} 57. Kh3 {[%clk 0:00:10]}  Bd7 {[%clk 0:00:43]} 58. Bc1 {[%clk 0:00:08]}  Kg6+ {[%clk 0:00:42]} 59. Kg2 {[%clk 0:00:09]}  f5 {[%clk 0:00:40]} 60. Be3 {[%clk 0:00:09]}  f4 {[%clk 0:00:38]} 61. Bd4 {[%clk 0:00:09]}  Kf5 {[%clk 0:00:38]} 62. Kh3 {[%clk 0:00:09]}  Ke4+ {[%clk 0:00:36]} 63. Kg2 {[%clk 0:00:09]}  Kxd4 {[%clk 0:00:36]} 64. c6 {[%clk 0:00:10]}  Bxc6+ {[%clk 0:00:36]} 65. Kh2 {[%clk 0:00:11]}  Kc4 {[%clk 0:00:36]} 66. Kh3 {[%clk 0:00:11]}  Kxb4 {[%clk 0:00:36]} 67. Kh2 {[%clk 0:00:12]}  Kc4 {[%clk 0:00:37]} 68. Kh3 {[%clk 0:00:13]}  b4 {[%clk 0:00:37]} 69. Kh2 {[%clk 0:00:14]}  b3 {[%clk 0:00:38]} 70. Kh3 {[%clk 0:00:14]}  b2 {[%clk 0:00:38]} 71. Kh2 {[%clk 0:00:15]}  b1=Q {[%clk 0:00:38]} 72. Kh3 {[%clk 0:00:16]}  Bd7+ {[%clk 0:00:36]} 73. Kh2 {[%clk 0:00:16]}  Qc2+ {[%clk 0:00:35]} 74. Kg1 {[%clk 0:00:16]}  f3 {[%clk 0:00:35]} 75. Kf1 {[%clk 0:00:17]}  Qe2+ {[%clk 0:00:34]} 76. Kg1 {[%clk 0:00:18]}  Qg2# {[%clk 0:00:35]} 0-1


[Site "https://www.chess.com"]

[Event "Titled Tuesday Blitz April 25 Early 2023"]
[White "Lenaerts, Lennert"]
[Black "Rios Escobar, Adan"]
[WhiteFideId "211435"]
[BlackFideId "3403645"]
[WhiteElo "2334"]
[BlackElo "2497"]
[Result "0-1"]
[Round "08"]
[TimeControl "180+2"]
[Date "2023.04.25"]
[WhiteClock "0:00:21"]
[BlackClock "0:00:17"]

1. d4 {[%clk 0:02:24]}  Nf6 {[%clk 0:02:59]} 2. c4 {[%clk 0:02:24]}  g6 {[%clk 0:02:59]} 3. Nc3 {[%clk 0:02:24]}  Bg7 {[%clk 0:03:00]} 4. e4 {[%clk 0:02:25]}  d6 {[%clk 0:03:00]} 5. f3 {[%clk 0:02:25]}  O-O {[%clk 0:03:00]} 6. Be3 {[%clk 0:02:25]}  a6 {[%clk 0:03:00]} 7. Nge2 {[%clk 0:02:21]}  Nc6 {[%clk 0:03:01]} 8. Qd2 {[%clk 0:02:16]}  Na5 {[%clk 0:03:01]} 9. Nc1 {[%clk 0:02:16]}  Nd7 {[%clk 0:03:00]} 10. Be2 {[%clk 0:02:10]}  c5 {[%clk 0:02:48]} 11. dxc5 {[%clk 0:02:11]}  Ne5 {[%clk 0:02:23]} 12. b3 {[%clk 0:02:00]}  dxc5 {[%clk 0:02:17]} 13. Nd3 {[%clk 0:01:43]}  Nexc4 {[%clk 0:02:08]} 14. bxc4 {[%clk 0:01:31]}  Nxc4 {[%clk 0:02:08]} 15. Qc1 {[%clk 0:01:26]}  Nxe3 {[%clk 0:02:05]} 16. Rb1 {[%clk 0:01:04]}  Qd4 {[%clk 0:01:49]} 17. Nd1 {[%clk 0:01:00]}  Nxg2+ {[%clk 0:01:46]} 18. Kf1 {[%clk 0:01:01]}  Bh3 {[%clk 0:01:45]} 19. N1f2 {[%clk 0:01:01]}  Ne3+ {[%clk 0:01:37]} 20. Kg1 {[%clk 0:00:56]}  c4 {[%clk 0:01:13]} 21. Rb4 {[%clk 0:00:49]}  Be6 {[%clk 0:00:40]} 22. Nf4 {[%clk 0:00:40]}  b5 {[%clk 0:00:35]} 23. a4 {[%clk 0:00:23]}  Bh6 {[%clk 0:00:33]} 24. Nxe6 {[%clk 0:00:22]}  fxe6 {[%clk 0:00:34]} 25. Qb2 {[%clk 0:00:21]}  Qc5 {[%clk 0:00:22]} 26. axb5 {[%clk 0:00:21]}  Qg5+ {[%clk 0:00:17]} 27. Ng4 {[%clk 0:00:21]}  Nxg4 {[%clk 0:00:17]} 0-1


[Site "https://www.chess.com"]

[Event "Titled Tuesday Blitz April 25 Early 2023"]
[White "Janaszak, Dawid"]
[Black "Karas, Marek"]
[WhiteFideId "1119206"]
[BlackFideId "14928558"]
[WhiteElo "2220"]
[BlackElo "2233"]
[Result "1-0"]
[Round "08"]
[TimeControl "180+2"]
[Date "2023.04.25"]
[WhiteClock "0:01:00"]
[BlackClock "0:00:01"]

1. e4 {[%clk 0:02:59]}  e6 {[%clk 0:01:32]} 2. b3 {[%clk 0:02:57]}  d5 {[%clk 0:01:33]} 3. Bb2 {[%clk 0:02:56]}  Nf6 {[%clk 0:01:33]} 4. d3 {[%clk 0:02:56]}  dxe4 {[%clk 0:01:32]} 5. Nd2 {[%clk 0:02:57]}  exd3 {[%clk 0:01:31]} 6. Bxd3 {[%clk 0:02:58]}  Be7 {[%clk 0:01:31]} 7. Qe2 {[%clk 0:02:53]}  c5 {[%clk 0:01:29]} 8. O-O-O {[%clk 0:02:53]}  Nc6 {[%clk 0:01:28]} 9. Ngf3 {[%clk 0:02:51]}  Qc7 {[%clk 0:01:26]} 10. g4 {[%clk 0:02:49]}  h6 {[%clk 0:01:25]} 11. Rhg1 {[%clk 0:02:49]}  Bd7 {[%clk 0:01:25]} 12. h4 {[%clk 0:02:44]}  O-O-O {[%clk 0:01:22]} 13. g5 {[%clk 0:02:44]}  hxg5 {[%clk 0:01:22]} 14. hxg5 {[%clk 0:02:44]}  Nh5 {[%clk 0:01:22]} 15. Be4 {[%clk 0:02:35]}  f6 {[%clk 0:01:11]} 16. Kb1 {[%clk 0:02:26]}  Nf4 {[%clk 0:01:06]} 17. Qe3 {[%clk 0:02:14]}  e5 {[%clk 0:01:07]} 18. gxf6 {[%clk 0:02:11]}  Bxf6 {[%clk 0:01:06]} 19. Bxc6 {[%clk 0:01:54]}  Bxc6 {[%clk 0:01:05]} 20. Nxe5 {[%clk 0:01:54]}  Ne6 {[%clk 0:00:46]} 21. f4 {[%clk 0:01:39]}  Nd4 {[%clk 0:00:42]} 22. Ndc4 {[%clk 0:01:21]}  Nf5 {[%clk 0:00:34]} 23. Qxc5 {[%clk 0:01:14]}  Rxd1+ {[%clk 0:00:16]} 24. Rxd1 {[%clk 0:01:14]}  Rd8 {[%clk 0:00:05]} 25. Rxd8+ {[%clk 0:01:14]}  Qxd8 {[%clk 0:00:06]} 26. Nxc6 {[%clk 0:01:10]}  Qd1+ {[%clk 0:00:05]} 27. Bc1 {[%clk 0:01:10]}  bxc6 {[%clk 0:00:03]} 28. Qxf5+ {[%clk 0:01:10]}  Kb7 {[%clk 0:00:03]} 29. Qd3 {[%clk 0:01:11]}  Qg1 {[%clk 0:00:03]} 30. Qd7+ {[%clk 0:01:09]}  Kb8 {[%clk 0:00:02]} 31. Na5 {[%clk 0:01:00]}  Qb6 {[%clk 0:00:01]} 32. Nxc6+ {[%clk 0:01:00]}  Ka8 {[%clk 0:00:01]} 33. Qc8+ {[%clk 0:01:00]} 1-0


[Site "https://www.chess.com"]